[Event "Chpt Reg Jeunes Occitanie 2026 - Espalion"]
[Site "Espalion, France"]
[Round "5.8"]
[ECO "?"]
[Annotator "?"]
[TimeControl "1h30 + 30sec/cp"]

1. e4 {[%clk 1:30:57][%emt 0:00:03]} 1... c5 {[%clk 1:30:54][%emt 0:00:07]} 2.
Nf3 {[%clk 1:31:04][%emt 0:00:23]} 2... Nc6 {[%clk 1:31:16][%emt 0:00:08]} 3.
d4 {[%clk 1:30:57][%emt 0:00:37]} 3... cxd4 {[%clk 1:31:39][%emt 0:00:07]} 4.
Nxd4 {[%clk 1:31:22][%emt 0:00:04]} 4... g6 {[%clk 1:32:03][%emt 0:00:07]} 5.
Be3 {[%clk 1:30:51][%emt 0:01:00]} 5... Bg7 {[%clk 1:32:20][%emt 0:00:13]} 6.
Nc3 {[%clk 1:30:42][%emt 0:00:39]} 6... Nf6 {[%clk 1:32:20][%emt 0:00:31]} 7.
f3 {[%clk 1:30:41][%emt 0:00:30]} 7... O-O {[%clk 1:32:36][%emt 0:00:15]} 8.
Qd2 {[%clk 1:30:24][%emt 0:00:46]} 8... d5 {[%clk 1:32:30][%emt 0:00:37]} 9.
Nxc6 {[%clk 1:18:33][%emt 0:12:21]} 9... bxc6 {[%clk 1:32:52][%emt 0:00:07]}
10. O-O-O {[%clk 1:16:33][%emt 0:02:31]} 10... Bb7 {[%clk 1:30:17][%emt
0:03:05]} 11. Be2 {[%clk 1:06:55][%emt 0:10:08]} 11... e5 {[%clk 1:26:34][%emt
0:04:13]} 12. Bc5 {[%clk 0:57:56][%emt 0:09:30]} 12... Re8 {[%clk
1:26:32][%emt 0:00:31]} 13. Rhe1 {[%clk 0:51:37][%emt 0:06:48]} 13... Qa5
{[%clk 1:15:22][%emt 0:11:42]} 14. Ba3 {[%clk 0:47:53][%emt 0:04:14]} 14... d4
{[%clk 1:12:36][%emt 0:03:15]} 15. Nb1 {[%clk 0:47:21][%emt 0:01:01]} 15...
Qc7 {[%clk 1:04:54][%emt 0:08:12]} 16. Bc4 {[%clk 0:42:05][%emt 0:05:46]}
16... Nd7 {[%clk 1:03:02][%emt 0:02:23]} 17. Qd3 {[%clk 0:37:38][%emt 0:04:56]}
 17... Nb6 {[%clk 0:55:50][%emt 0:07:43]} 18. Nd2 {[%clk 0:33:35][%emt
0:04:33]} 18... Bh6 {[%clk 0:53:56][%emt 0:02:24]} 19. Kb1 {[%clk
0:30:55][%emt 0:03:09]} 19... Rab8 {[%clk 0:51:25][%emt 0:03:01]} 20. Nb3
{[%clk 0:28:08][%emt 0:03:17]} 20... Bc8 {[%clk 0:39:19][%emt 0:12:36]} 21.
Nc5 {[%clk 0:21:30][%emt 0:07:08]} 21... Nxc4 {[%clk 0:30:13][%emt 0:09:36]}
22. Qxc4 {[%clk 0:21:49][%emt 0:00:10]} 22... Bf8 {[%clk 0:29:51][%emt
0:00:52]} 23. Na6 {[%clk 0:18:52][%emt 0:03:28]} 23... Bxa6 {[%clk
0:27:17][%emt 0:03:04]} 24. Qxa6 {[%clk 0:18:45][%emt 0:00:37]} 24... Rb6
{[%clk 0:27:24][%emt 0:00:23]} 25. Qd3 {[%clk 0:18:12][%emt 0:01:02]} 25...
Reb8 {[%clk 0:27:25][%emt 0:00:29]} 26. Ka1 {[%clk 0:17:34][%emt 0:01:08]}
26... Bxa3 {[%clk 0:27:05]} 27. Qxa3 {[%clk 0:17:53][%emt 0:01:01]} 27... Rxb2
{[%clk 0:27:23][%emt 0:00:14]} 28. Qxb2 {[%clk 0:17:16][%emt 0:01:06]} 28...
Rxb2 {[%clk 0:27:51][%emt 0:00:02]} 29. Kxb2 {[%clk 0:17:37][%emt 0:00:09]}
29... c5 {[%clk 0:27:48][%emt 0:00:33]} 30. c3 {[%clk 0:10:36][%emt 0:07:31]}
30... Qa5 {[%clk 0:27:13][%emt 0:01:05]} 31. cxd4 {[%clk 0:09:00][%emt
0:02:06]} 31... cxd4 {[%clk 0:27:41][%emt 0:00:01]} 32. Rc1 {[%clk
0:09:01][%emt 0:00:29]} 32... Qd2+ {[%clk 0:27:47][%emt 0:00:24]} 33. Kb1
{[%clk 0:07:13][%emt 0:02:17]} 33... Qxg2 {[%clk 0:28:07][%emt 0:00:11]} 34.
Rc7 {[%clk 0:06:55][%emt 0:00:49]} 34... Qxf3 {[%clk 0:27:58][%emt 0:00:39]}
35. Rxa7 {[%clk 0:06:39][%emt 0:00:46]} 35... Qd3+ {[%clk 0:28:10][%emt
0:00:18]} 36. Kc1 {[%clk 0:07:02][%emt 0:00:07]} 36... Qc3+ {[%clk
0:28:29][%emt 0:00:12]} 37. Kd1 {[%clk 0:07:17][%emt 0:00:14]} 37... d3 {[%clk
0:28:51][%emt 0:00:09]} 0-1

[White "DUCOS, Antonios"]
[Black "MARTIN-GOMES, Luis"]
[WhiteElo "1890"]
[BlackElo "1702"]
[Result "0-1"]
[Date "2026.03.06"]

[Event "Chpt Reg Jeunes Occitanie 2026 - Espalion"]
[Site "Espalion, France"]
[Round "5.9"]
[ECO "?"]
[Annotator "?"]
[TimeControl "1h30 + 30sec/cp"]

1. d4 {[%clk 1:30:57][%emt 0:00:02]} 1... Nf6 {[%clk 1:30:49][%emt 0:00:11]}
2. Bf4 {[%clk 1:31:22][%emt 0:00:07]} 2... g6 {[%clk 1:30:59][%emt 0:00:20]}
3. Nc3 {[%clk 1:31:38][%emt 0:00:14]} 3... Bg7 {[%clk 1:29:54][%emt 0:01:34]}
4. e4 {[%clk 1:31:15][%emt 0:00:53]} 4... d6 {[%clk 1:24:36][%emt 0:05:49]} 5.
Be2 {[%clk 1:30:59][%emt 0:00:45]} 5... b6 {[%clk 1:09:47][%emt 0:15:20]} 6.
h4 {[%clk 1:25:57][%emt 0:05:30]} 6... Bb7 {[%clk 1:02:10][%emt 0:08:09]} 7.
f3 {[%clk 1:17:49][%emt 0:08:37]} 7... h5 {[%clk 0:54:56][%emt 0:07:45]} 8.
Nh3 {[%clk 1:16:32][%emt 0:01:47]} 8... Nbd7 {[%clk 0:50:40][%emt 0:04:46]} 9.
Ng5 {[%clk 0:56:12][%emt 0:20:49]} 9... e5 {[%clk 0:40:55][%emt 0:10:15]} 10.
dxe5 {[%clk 0:56:20][%emt 0:00:22]} 10... Nxe5 {[%clk 0:40:13][%emt 0:01:11]}
11. Qd2 {[%clk 0:51:20][%emt 0:05:30]} 11... a6 {[%clk 0:33:36][%emt 0:07:09]}
12. O-O-O {[%clk 0:49:16][%emt 0:02:33]} 12... Qe7 {[%clk 0:29:53][%emt
0:04:13]} 13. Rhe1 {[%clk 0:44:38][%emt 0:05:06]} 13... O-O-O {[%clk
0:24:47][%emt 0:05:38]} 14. Qe3 {[%clk 0:39:29][%emt 0:05:40]} 14... Kb8
{[%clk 0:21:15][%emt 0:04:02]} 15. Rd2 {[%clk 0:32:01][%emt 0:07:57]} 15...
Nh7 {[%clk 0:18:15][%emt 0:03:30]} 16. Nxh7 {[%clk 0:24:12][%emt 0:08:19]}
16... Rxh7 {[%clk 0:18:37][%emt 0:00:07]} 17. g3 {[%clk 0:23:51][%emt 0:00:52]}
 17... Rhh8 {[%clk 0:18:14][%emt 0:00:53]} 18. Nd5 {[%clk 0:23:02][%emt
0:01:19]} 18... Qe6 {[%clk 0:12:49][%emt 0:05:56]} 19. Kb1 {[%clk
0:19:51][%emt 0:03:40]} 19... Rhe8 {[%clk 0:11:41][%emt 0:01:38]} 20. c3
{[%clk 0:13:18][%emt 0:07:04]} 20... b5 {[%clk 0:11:17][%emt 0:00:54]} 21. Bf1
{[%clk 0:11:43][%emt 0:02:05]} 21... f5 {[%clk 0:09:37][%emt 0:02:10]} 22. Bg5
{[%clk 0:10:16][%emt 0:01:56]} 22... Rd7 {[%clk 0:08:51][%emt 0:01:16]} 23.
exf5 {[%clk 0:05:54][%emt 0:04:52]} 23... Qxf5+ {[%clk 0:07:57][%emt 0:01:23]}
24. Ka1 {[%clk 0:05:19][%emt 0:01:06]} 24... Rf8 {[%clk 0:07:31][%emt 0:00:57]}
 25. f4 {[%clk 0:04:05][%emt 0:01:44]} 25... Ng4 {[%clk 0:07:20][%emt 0:00:41]}
 26. Qe6 {[%clk 0:03:41][%emt 0:00:53]} 26... Rdf7 {[%clk 0:06:00][%emt
0:01:50]} 27. Ne7 {[%clk 0:01:35][%emt 0:02:36]} 27... Qxe6 {[%clk
0:03:54][%emt 0:02:36]} 28. Rxe6 {[%clk 0:02:04][%emt 0:00:02]} 28... Re8
{[%clk 0:04:16][%emt 0:00:07]} 29. Bd3 {[%clk 0:02:03][%emt 0:00:31]} 29...
Bf6 {[%emt 0:00:46]} 30. Bxf6 {[%clk 0:00:43][%emt 0:01:48]} 30... Rxf6 {[%clk
0:04:28][%emt 0:00:05]} 31. Rxf6 {[%clk 0:00:44][%emt 0:00:29]} 31... Nxf6
{[%clk 0:04:57]} 32. Re2 {[%clk 0:00:42][%emt 0:00:33]} 32... Bf3 {[%clk
0:04:45][%emt 0:00:41]} 33. Re3 {[%clk 0:00:46][%emt 0:00:25]} 33... Be4
{[%clk 0:03:51][%emt 0:01:24]} 34. f5 {[%clk 0:00:36][%emt 0:00:41]} 34...
Bxd3 {[%clk 0:03:57][%emt 0:00:24]} 35. fxg6 {[%emt 0:00:33]} 35... Bxg6
{[%clk 0:04:16][%emt 0:00:09]} 36. Re6 {[%clk 0:00:49][%emt 0:00:16]} 36...
Bf7 {[%clk 0:03:45][%emt 0:01:00]} 37. Rxf6 {[%clk 0:00:44][%emt 0:00:35]}
37... Rxe7 {[%clk 0:04:14][%emt 0:00:01]} 38. Kb1 {[%clk 0:01:06][%emt
0:00:08]} 38... Be6 {[%clk 0:04:35][%emt 0:00:10]} 39. Kc2 {[%clk
0:01:09][%emt 0:00:27]} 39... Bg4 {[%clk 0:04:59][%emt 0:00:05]} 40. Kd2
{[%clk 0:01:34][%emt 0:00:05]} 40... Re2+ {[%clk 0:05:21][%emt 0:00:08]} 41.
Kc1 {[%clk 0:01:59][%emt 0:00:06]} 41... Rg2 {[%clk 0:05:47][%emt 0:00:04]}
42. Rf1 {[%clk 0:02:14][%emt 0:00:15]} 42... Rxg3 {[%clk 0:06:12][%emt
0:00:05]} 43. Rh1 {[%clk 0:02:35][%emt 0:00:09]} 43... Rh3 {[%clk
0:06:32][%emt 0:00:09]} 44. Rxh3 {[%clk 0:03:02][%emt 0:00:03]} 44... Bxh3
{[%clk 0:06:56][%emt 0:00:06]} 45. Kd2 {[%clk 0:03:29][%emt 0:00:03]} 45...
Kb7 {[%clk 0:07:19][%emt 0:00:07]} 46. Ke3 {[%clk 0:03:44][%emt 0:00:15]}
46... Be6 {[%clk 0:07:35][%emt 0:00:14]} 47. a3 {[%clk 0:04:09][%emt 0:00:05]}
47... Kb6 {[%clk 0:07:57][%emt 0:00:09]} 48. Kf4 {[%clk 0:04:38]} 48... Kc5
{[%clk 0:08:15][%emt 0:00:11]} 49. Kg5 {[%clk 0:05:05][%emt 0:00:03]} 49...
Bg4 {[%clk 0:08:39][%emt 0:00:07]} 0-1

[White "ROEKENS, Loic"]
[Black "WOJTAS, Lumeann"]
[WhiteElo "1651"]
[BlackElo "1815"]
[Result "0-1"]
[Date "2026.03.06"]

[Event "Chpt Reg Jeunes Occitanie 2026 - Espalion"]
[Site "Espalion, France"]
[Round "5.10"]
[ECO "?"]
[Annotator "?"]
[TimeControl "1h30 + 30sec/cp"]

1. e4 {[%clk 1:30:57][%emt 0:00:02]} 1... e5 {[%clk 1:30:35][%emt 0:00:25]} 2.
Nf3 {[%clk 1:31:19][%emt 0:00:08]} 2... Nf6 {[%clk 1:30:05][%emt 0:01:00]} 3.
Nc3 {[%clk 1:31:14][%emt 0:00:36]} 3... Nc6 {[%clk 1:30:18][%emt 0:00:17]} 4.
Bb5 {[%clk 1:31:19][%emt 0:00:25]} 4... Nd4 {[%clk 1:30:22][%emt 0:00:25]} 5.
Ba4 {[%clk 1:29:50][%emt 0:02:00]} 5... Bc5 {[%clk 1:27:06][%emt 0:03:44]} 6.
d3 {[%clk 1:26:04][%emt 0:04:19]} 6... Qe7 {[%clk 1:25:35][%emt 0:01:58]} 7.
Bg5 {[%clk 1:20:06][%emt 0:06:30]} 7... c6 {[%clk 1:25:19][%emt 0:00:46]} 8.
Nxd4 {[%clk 1:17:37][%emt 0:02:59]} 8... Bxd4 {[%clk 1:24:22][%emt 0:01:26]}
9. Qd2 {[%clk 1:13:55][%emt 0:04:13]} 9... h6 {[%clk 1:21:42][%emt 0:03:10]}
10. Be3 {[%clk 1:12:23][%emt 0:02:02]} 10... Bxe3 {[%clk 1:21:36][%emt
0:00:35]} 11. Qxe3 {[%clk 1:12:19][%emt 0:00:34]} 11... O-O {[%clk
1:20:07][%emt 0:02:00]} 12. O-O {[%clk 1:07:45][%emt 0:05:04]} 12... Nh5
{[%clk 1:10:29][%emt 0:10:07]} 13. Bb3 {[%clk 1:06:59][%emt 0:01:16]} 13... d6
{[%clk 1:10:17][%emt 0:00:42]} 14. Ne2 {[%clk 1:02:43][%emt 0:04:46]} 14...
Be6 {[%clk 0:54:40][%emt 0:16:07]} 15. f4 {[%clk 0:56:10][%emt 0:07:03]} 15...
Nxf4 {[%clk 0:54:49][%emt 0:00:20]} 16. Nxf4 {[%clk 0:56:26][%emt 0:00:15]}
16... exf4 {[%clk 0:55:13][%emt 0:00:06]} 17. Rxf4 {[%clk 0:52:02][%emt
0:04:54]} 17... b5 {[%clk 0:54:53][%emt 0:00:50]} 18. c3 {[%clk 0:48:44][%emt
0:03:50]} 18... a5 {[%clk 0:52:05][%emt 0:03:17]} 19. d4 {[%clk 0:42:19][%emt
0:06:55]} 19... Bxb3 {[%clk 0:51:39][%emt 0:00:55]} 20. axb3 {[%clk
0:42:41][%emt 0:00:09]} 20... Qe6 {[%clk 0:51:36][%emt 0:00:31]} 21. Qg3
{[%clk 0:38:01][%emt 0:05:10]} 21... Kh7 {[%clk 0:43:59][%emt 0:08:05]} 22.
Rg4 {[%clk 0:31:29][%emt 0:07:05]} 22... g6 {[%emt 0:04:52]} 23. Rf1 {[%clk
0:30:12]} 23... Rad8 {[%clk 0:36:53][%emt 0:04:57]} 24. Rgf4 {[%clk
0:23:34][%emt 0:07:12]} 24... Kg7 {[%clk 0:33:26][%emt 0:03:56]} 25. h4 {[%clk
0:23:27][%emt 0:00:37]} 25... h5 {[%clk 0:32:16][%emt 0:01:39]} 26. Rf6 {[%clk
0:22:48][%emt 0:01:09]} 26... Qxf6 {[%clk 0:32:00][%emt 0:00:46]} 27. Rxf6
{[%clk 0:23:06]} 27... Kxf6 {[%clk 0:32:23][%emt 0:00:20]} 28. e5+ {[%clk
0:23:17][%emt 0:00:20]} 28... Ke6 {[%clk 0:31:22][%emt 0:01:27]} 29. Qg5
{[%clk 0:21:20][%emt 0:02:29]} 29... dxe5 {[%clk 0:30:33][%emt 0:01:20]} 30.
Qxe5+ {[%clk 0:21:25][%emt 0:00:25]} 30... Kd7 {[%clk 0:30:49][%emt 0:00:15]}
31. c4 {[%clk 0:21:00][%emt 0:00:56]} 31... Rde8 {[%clk 0:30:05][%emt 0:01:12]}
 32. Qc5 {[%clk 0:19:23][%emt 0:02:06]} 32... Rb8 {[%clk 0:28:17][%emt
0:02:50]} 33. d5 {[%clk 0:19:10][%emt 0:01:12]} 33... cxd5 {[%clk
0:27:31][%emt 0:01:17]} 34. Qxd5+ {[%clk 0:17:48][%emt 0:01:52]} 34... Ke7
{[%clk 0:27:52][%emt 0:00:09]} 35. Qe5+ {[%clk 0:17:26][%emt 0:00:52]} 35...
Kd7 {[%clk 0:28:12][%emt 0:00:09]} 36. Qd5+ {[%clk 0:17:44][%emt 0:00:12]}
36... Ke7 {[%clk 0:28:34][%emt 0:00:09]} 37. c5 {[%clk 0:17:35][%emt 0:00:39]}
37... Rfd8 {[%clk 0:28:35][%emt 0:00:29]} 38. Qe5+ {[%clk 0:17:52][%emt
0:00:13]} 38... Kf8 {[%clk 0:27:50][%emt 0:01:15]} 39. c6 {[%clk 0:18:07][%emt
0:00:14]} 39... Rbc8 {[%clk 0:27:46][%emt 0:00:35]} 40. Qxb5 {[%clk
0:18:18][%emt 0:00:18]} 40... Rd6 {[%clk 0:27:41][%emt 0:00:36]} 41. c7 {[%clk
0:18:13][%emt 0:00:34]} 41... Rd1+ {[%clk 0:27:52][%emt 0:00:18]} 42. Kf2
{[%clk 0:17:48][%emt 0:00:55]} 42... Rc1 {[%clk 0:27:59][%emt 0:00:23]} 43.
Qxa5 {[%clk 0:17:32][%emt 0:00:47]} 43... R8xc7 {[%clk 0:28:23][%emt 0:00:07]}
44. Qe5 {[%clk 0:17:29][%emt 0:00:32]} 44... R7c5 {[%clk 0:25:23][%emt
0:03:29]} 45. Qd4 {[%clk 0:16:53][%emt 0:01:07]} 45... R5c2+ {[%clk
0:23:48][%emt 0:02:06]} 46. Kf3 {[%clk 0:16:54][%emt 0:00:29]} 46... Rf1+
{[%clk 0:23:52][%emt 0:00:24]} 47. Kg3 {[%clk 0:17:01][%emt 0:00:22]} 47...
Re1 {[%clk 0:22:57][%emt 0:01:26]} 48. Qb4+ {[%clk 0:16:54][%emt 0:00:38]}
48... Re7 {[%clk 0:23:14][%emt 0:00:13]} 49. Kf3 {[%clk 0:15:41][%emt 0:01:43]}
 49... Rxb2 {[%clk 0:21:49][%emt 0:01:55]} 50. Qc3 {[%clk 0:14:37][%emt
0:01:35]} 50... Ree2 {[%clk 0:22:11][%emt 0:00:08]} 51. Qc8+ {[%clk
0:14:25][%emt 0:00:41]} 51... Kg7 {[%clk 0:21:33][%emt 0:01:09]} 52. Qc3+
{[%clk 0:14:43][%emt 0:00:12]} 52... Kh7 {[%clk 0:21:46][%emt 0:00:15]} 53.
Qc4 {[%clk 0:14:40][%emt 0:00:35]} 53... Rf2+ {[%clk 0:21:49][%emt 0:00:27]}
54. Ke3 {[%clk 0:14:53][%emt 0:00:16]} 54... Rf5 {[%clk 0:21:09][%emt 0:01:10]}
 55. g4 {[%clk 0:14:24][%emt 0:01:00]} 55... hxg4 {[%clk 0:21:18][%emt
0:00:21]} 56. Qxg4 {[%clk 0:14:34][%emt 0:00:20]} 56... Rxb3+ {[%clk
0:21:41][%emt 0:00:08]} 57. Ke2 {[%clk 0:14:34][%emt 0:00:29]} 57... Rbf3
{[%clk 0:21:29][%emt 0:00:41]} 58. Ke1 {[%clk 0:13:00][%emt 0:02:04]} 58...
Kh6 {[%clk 0:20:17][%emt 0:01:42]} 59. Ke2 {[%clk 0:13:12][%emt 0:00:19]}
59... R3f4 {[%clk 0:20:30][%emt 0:00:16]} 60. Qg3 {[%clk 0:13:04][%emt
0:00:39]} 60... Rf2+ {[%clk 0:20:50][%emt 0:00:10]} 61. Ke1 {[%clk
0:13:01][%emt 0:00:33]} 61... Rf1+ {[%clk 0:21:16][%emt 0:00:05]} 62. Ke2
{[%clk 0:13:26][%emt 0:00:05]} 62... R5f2+ {[%clk 0:21:42][%emt 0:00:04]} 63.
Qxf2 {[%emt 0:00:12]} 63... Rxf2+ {[%clk 0:22:05][%emt 0:00:05]} 64. Kxf2
{[%clk 0:14:10][%emt 0:00:05]} 64... Kh5 {[%clk 0:22:20][%emt 0:00:15]} 65.
Kg3 {[%clk 0:14:37][%emt 0:00:03]} 65... f5 {[%clk 0:22:40][%emt 0:00:10]} 66.
Kh3 {[%clk 0:15:00][%emt 0:00:07]} 66... f4 {[%clk 0:23:06][%emt 0:00:04]} 0-1

[White "MORALES, Maxime"]
[Black "GERVAIS, Liam"]
[WhiteElo "1932"]
[BlackElo "1758"]
[Result "1/2-1/2"]
[Date "2026.03.06"]

[Event "Chpt Reg Jeunes Occitanie 2026 - Espalion"]
[Site "Espalion, France"]
[Round "6.6"]
[ECO "?"]
[Annotator "?"]
[TimeControl "1h30 + 30sec/cp"]

1. d4 {[%clk 1:30:58][%emt 0:00:02]} 1... c5 {[%clk 1:30:55][%emt 0:00:06]} 2.
d5 {[%clk 1:31:25][%emt 0:00:03]} 2... d6 {[%clk 1:31:15][%emt 0:00:10]} 3. c4
{[%clk 1:31:46][%emt 0:00:09]} 3... Nf6 {[%clk 1:31:37][%emt 0:00:08]} 4. Nc3
{[%clk 1:31:46][%emt 0:00:28]} 4... g6 {[%clk 1:31:35][%emt 0:00:33]} 5. Nf3
{[%clk 1:31:46][%emt 0:00:30]} 5... Bg7 {[%clk 1:31:36][%emt 0:00:29]} 6. e4
{[%clk 1:31:12][%emt 0:01:04]} 6... O-O {[%clk 1:31:31][%emt 0:00:35]} 7. Bd3
{[%clk 1:31:25][%emt 0:00:17]} 7... Na6 {[%clk 1:31:12][%emt 0:00:50]} 8. h3
{[%clk 1:28:55][%emt 0:02:59]} 8... Nc7 {[%clk 1:27:35][%emt 0:04:07]} 9. O-O
{[%clk 1:28:12][%emt 0:01:13]} 9... e6 {[%clk 1:25:52][%emt 0:02:14]} 10. Re1
{[%clk 1:13:45][%emt 0:14:57]} 10... Re8 {[%clk 1:21:32][%emt 0:04:50]} 11.
Qc2 {[%clk 1:05:38][%emt 0:08:36]} 11... Rb8 {[%clk 1:11:35][%emt 0:10:27]}
12. Bf4 {[%clk 0:58:53][%emt 0:07:13]} 12... b5 {[%clk 1:07:12][%emt 0:04:54]}
13. Rad1 {[%clk 0:50:28][%emt 0:08:54]} 13... Nh5 {[%clk 0:51:02][%emt
0:16:40]} 14. Bg5 {[%clk 0:47:02][%emt 0:03:56]} 14... Bf6 {[%clk
0:44:42][%emt 0:06:51]} 15. Bxf6 {[%clk 0:46:06][%emt 0:01:25]} 15... Nxf6
{[%clk 0:44:50][%emt 0:00:21]} 16. e5 {[%clk 0:39:08][%emt 0:07:28]} 16...
bxc4 {[%clk 0:38:01][%emt 0:07:19]} 17. Bxc4 {[%clk 0:35:30][%emt 0:04:08]}
17... Nfxd5 {[%clk 0:32:33][%emt 0:05:58]} 18. Nxd5 {[%clk 0:34:56][%emt
0:01:04]} 18... exd5 {[%clk 0:31:50][%emt 0:01:13]} 19. Bxd5 {[%clk
0:33:02][%emt 0:02:25]} 19... Rb6 {[%clk 0:24:04][%emt 0:08:16]} 20. Bc4
{[%clk 0:22:48][%emt 0:10:43]} 20... Bb7 {[%clk 0:21:21][%emt 0:03:13]} 21.
exd6 {[%clk 0:17:02][%emt 0:06:16]} 21... Rxe1+ {[%clk 0:21:22][%emt 0:00:29]}
22. Nxe1 {[%clk 0:16:54][%emt 0:00:39]} 22... Rxd6 {[%clk 0:21:36][%emt
0:00:16]} 23. Rxd6 {[%clk 0:16:50][%emt 0:00:33]} 23... Qxd6 {[%clk
0:22:04][%emt 0:00:02]} 24. Qb3 {[%clk 0:16:46][%emt 0:00:34]} 24... Qe7
{[%clk 0:06:38][%emt 0:15:57]} 25. Qxb7 {[%clk 0:13:23][%emt 0:03:52]} 25...
Qxe1+ {[%clk 0:06:58][%emt 0:00:10]} 26. Kh2 {[%clk 0:13:10][%emt 0:00:43]}
26... Qe5+ {[%clk 0:05:47][%emt 0:01:41]} 27. g3 {[%clk 0:11:00][%emt 0:02:40]}
 27... Ne6 {[%clk 0:04:56][%emt 0:01:22]} 28. Qa8+ {[%clk 0:09:18][%emt
0:02:11]} 28... Kg7 {[%clk 0:03:58][%emt 0:01:28]} 29. Bxe6 {[%clk
0:09:28][%emt 0:00:20]} 29... Qxe6 {[%clk 0:03:00][%emt 0:01:29]} 30. Qxa7
{[%clk 0:09:48][%emt 0:00:10]} 30... Qd5 {[%clk 0:01:44][%emt 0:01:46]} 31.
Qa3 {[%clk 0:07:48][%emt 0:02:28]} 31... f6 {[%clk 0:00:56][%emt 0:01:20]} 32.
b3 {[%clk 0:06:19][%emt 0:01:58]} 32... Qd4 {[%clk 0:01:06][%emt 0:00:21]} 33.
Kg1 {[%clk 0:04:22][%emt 0:02:26]} 33... Qd1+ {[%clk 0:01:22][%emt 0:00:15]}
34. Kg2 {[%clk 0:04:24][%emt 0:00:26]} 34... Qd5+ {[%clk 0:01:28][%emt
0:00:25]} 35. Kg1 {[%clk 0:04:39][%emt 0:00:15]} 35... Qd1+ {[%clk
0:01:56][%emt 0:00:03]} 36. Kh2 {[%clk 0:05:01][%emt 0:00:07]} 36... Qd4
{[%clk 0:02:14][%emt 0:00:12]} 37. Qa7+ {[%clk 0:04:44][%emt 0:00:47]} 37...
Kh6 {[%clk 0:02:20][%emt 0:00:24]} 38. Kg1 {[%clk 0:04:48][%emt 0:00:25]}
38... Qd1+ {[%clk 0:02:39][%emt 0:00:13]} 39. Kg2 {[%clk 0:05:04][%emt
0:00:13]} 39... Qd5+ {[%clk 0:02:49][%emt 0:00:20]} 40. Kg1 {[%clk
0:05:27][%emt 0:00:06]} 40... Qd1+ {[%clk 0:03:12][%emt 0:00:08]} 41. Kh2
{[%clk 0:05:53][%emt 0:00:04]} 41... Qd4 {[%clk 0:03:16][%emt 0:00:27]} 42.
Qb7 {[%clk 0:04:42][%emt 0:01:40]} 42... Qxf2+ {[%clk 0:03:03][%emt 0:00:43]}
43. Qg2 {[%clk 0:05:07][%emt 0:00:05]} 43... Qd4 {[%clk 0:03:00][%emt 0:00:33]}
 44. Qc2 {[%clk 0:04:20][%emt 0:01:15]} 44... f5 {[%clk 0:02:20][%emt 0:01:13]}
 45. Qc1+ {[%clk 0:03:06][%emt 0:01:43]} 45... Kg7 {[%clk 0:02:20][%emt
0:00:31]} 46. Qc2 {[%clk 0:02:55][%emt 0:00:40]} 46... Kh6 {[%clk
0:01:48][%emt 0:01:02]} 47. a4 {[%clk 0:02:21][%emt 0:01:04]} 47... Qb4 {[%clk
0:01:13][%emt 0:01:05]} 48. Qc1+ {[%clk 0:02:23][%emt 0:00:27]} 48... Kg7
{[%clk 0:01:06][%emt 0:00:39]} 1/2-1/2

[White "BENNANI, Joachim"]
[Black "LAVAL, Nolan"]
[WhiteElo "1727"]
[BlackElo "1876"]
[Result "0-1"]
[Date "2026.03.06"]